bitfinex/quotes_ETHUSD_20241130
["timestamp","ask_amount","ask_price","bid_price","bid_amount"]
[1732989107808,0.55228068,3678.7,3678.6,3.51432]
[1732989116928,0.40716899,3679.7,3679.6,2.71768]
[1732989117087,0.96840549,3679.7,3679.6,2.71768]
[1732989117627,1.51776492,3679.7,3679.6,2.71768]
[1732989118780,2.06776492,3679.7,3679.6,2.71768]
[1732989119627,0.80383488,3679.7,3679.6,2.71768]
[1732989120000,0.8036677,3679.7,3679.6,2.71768]
[1732989120207,0.54935943,3679.7,3679.6,2.71768]
[1732989120425,0.56774117,3679.9,3679.8,2.71753]
[1732989120723,0.82201438,3679.9,3679.8,2.71753]
[1732989120925,1.36430635,3679.9,3679.8,2.71753]
[1732989121080,1.91430635,3679.9,3679.8,2.71753]
[1732989122384,1.66003314,3679.9,3679.8,2.71753]
[1732989122783,1.11003314,3679.9,3679.8,2.71753]
[1732989123006,1.11003314,3679.9,3679.8,3.338661]
[1732989125142,1.11003314,3679.9,3679.8,4.114761]
[1732989125311,0.56774117,3679.9,3679.8,4.114761]
[1732989126203,0.55419956,3680.2,3680.1,2.71731]
[1732989127240,0.80832971,3680.2,3680.1,2.71731]
[1732989127480,0.55419956,3680.2,3680.1,3.6722571]
[1732989134463,0.55419956,3680.2,3680.1,2.71731]
[1732989134662,1.91759956,3680.2,3680.1,2.71731]
[1732989136851,1.10419956,3680.2,3680.1,2.71731]
[1732989142882,1.35808907,3680.2,3680.1,2.71731]
[1732989143475,1.35808907,3680.2,3680.1,3.49471]
[1732989144875,1.35808907,3680.2,3680.1,2.71731]
[1732989147358,1.76502483,3680.2,3680.1,2.71731]
[1732989147757,1.35808907,3680.2,3680.1,2.71731]
[1732989148063,1.10419956,3680.2,3680.1,2.71731]
[1732989148257,1.35853289,3680.2,3680.1,2.71731]
[1732989149280,1.76594405,3680.2,3680.1,2.71731]
[1732989149593,2.04309121,3680.2,3680.1,2.71731]
[1732989150100,0.55,3680.1,3679.9,2.7174]
[1732989150309,0.55,3679.9,3679.8,2.71753]
[1732989150469,0.80464632,3679.9,3679.8,2.71753]
[1732989151693,0.55,3680.1,3680.0,2.71736]
[1732989151864,1.21220287,3680.1,3680.0,2.71736]
[1732989154708,0.55,3680.1,3680.0,2.71736]
[1732989154876,1.2121176,3680.1,3680.0,2.71736]
[1732989155976,1.2121176,3680.1,3679.8,2.71753]
[1732989155977,1.58905505,3680.1,3679.8,2.71753]
[1732989156178,0.55,3679.9,3679.8,2.71753]
[1732989156496,1.2121176,3679.9,3679.7,2.7176]
[1732989156668,0.25466061,3679.8,3679.7,2.7176]
[1732989156871,0.80466061,3679.8,3679.7,2.7176]
[1732989157776,1.21204056,3679.8,3679.7,2.7176]
[1732989162624,1.21166959,3679.8,3679.7,2.7176]
[1732989162909,0.8044883,3679.8,3679.7,2.7176]
[1732989163488,0.8044883,3679.8,3679.5,2.71775]
[1732989163682,0.8044883,3679.7,3679.6,2.71767]
[1732989166523,0.25443112,3679.7,3679.4,2.71782]
[1732989166820,0.80443774,3679.6,3679.5,2.71776]
[1732989168320,0.80443774,3679.6,3679.3,2.71786]
[1732989168515,0.55,3679.7,3679.3,2.71786]
[1732989168715,0.55,3679.5,3679.3,2.71786]
[1732989169084,0.55,3679.7,3679.4,2.71783]
[1732989169399,0.55,3679.5,3679.2,2.71796]
[1732989169606,0.55,3679.5,3679.3,2.71785]
[1732989169919,0.55,3679.7,3679.3,2.71785]
[1732989170088,0.55,3679.5,3679.3,2.71785]
[1732989170425,0.55,3679.7,3679.4,2.71781]
[1732989170631,0.25434704,3679.6,3679.4,2.71781]
[1732989170779,0.80434704,3679.5,3679.4,2.71781]
[1732989171132,0.25434704,3679.5,3679.4,2.71781]
[1732989171416,0.80434704,3679.5,3679.4,2.71781]
[1732989171623,0.80433203,3679.5,3679.4,2.71781]
[1732989171797,1.58453203,3679.5,3679.4,2.71781]
[1732989172321,0.80433203,3679.5,3679.4,2.71781]
[1732989172482,0.55,3679.4,3679.2,2.71796]
[1732989172706,0.80433203,3679.3,3679.2,2.71796]
[1732989173905,0.55,3679.4,3679.2,2.71796]
[1732989174078,0.55,3679.4,3679.3,2.7179]
[1732989174285,0.80429264,3679.4,3679.3,2.7179]
[1732989175425,0.80429264,3679.4,3679.3,3.498]
[1732989177126,0.80430823,3679.4,3679.3,3.498]
[1732989178238,0.55,3679.4,3679.3,4.119596]
[1732989179496,0.80437599,3679.4,3679.3,4.119596]
[1732989179734,0.55,3679.4,3679.3,4.119596]
[1732989180139,0.55,3679.4,3679.3,3.498]
[1732989181434,0.55,3679.8,3679.6,2.71768]
[1732989181633,0.55,3680.1,3680.0,2.71739]
[1732989181839,1.21142158,3680.1,3680.0,2.71739]
[1732989182931,0.7825,3680.0,3679.0,0.7985]
[1732989183098,2.38221228,3679.9,3679.0,0.7985]
[1732989183293,2.38221228,3679.9,3679.6,2.71768]
[1732989183294,0.55,3679.7,3679.6,2.71768]
[1732989183498,1.21145491,3679.7,3679.6,2.71768]
[1732989186611,0.66177192,3679.7,3679.6,2.71768]
[1732989186812,1.21177192,3679.7,3679.6,2.71768]
[1732989187923,0.80452766,3679.7,3679.6,2.71768]
[1732989188318,0.55,3679.9,3679.7,2.71756]
[1732989189431,0.55,3679.6,3679.5,2.71775]
[1732989189604,0.80453278,3679.6,3679.5,2.71775]
[1732989190432,0.80453278,3679.6,3679.3,2.71784]
[1732989190655,1.17075737,3679.9,3679.3,2.71784]
[1732989190656,0.55,3679.4,3679.3,2.71784]
[1732989190962,0.80453278,3679.4,3679.3,2.71784]
[1732989191551,0.80453278,3679.4,3679.1,2.71803]
[1732989191767,0.80453278,3679.3,3679.2,2.71797]
[1732989192268,0.80456333,3679.3,3679.2,2.71797]
[1732989194762,0.55,3679.2,3679.0,2.71811]
[1732989195095,0.25456333,3679.1,3679.0,2.71811]
[1732989195215,0.80456333,3679.1,3679.0,2.71811]
[1732989195619,0.25453802,3679.1,3679.0,2.71811]
[1732989195885,0.80453802,3679.1,3679.0,2.71811]
[1732989198251,0.55,3679.0,3678.8,2.71826]
[1732989198468,0.80453802,3678.9,3678.8,2.71826]
[1732989198617,0.55,3678.8,3678.6,2.71841]
[1732989199448,0.55,3678.8,3678.4,2.71856]
[1732989199794,0.25440852,3678.7,3678.4,2.71856]
[1732989199959,0.55,3678.8,3678.4,2.71856]
[1732989200292,0.55,3678.6,3678.4,2.71856]
[1732989200587,0.55,3678.6,3678.2,2.7187]
[1732989201568,0.55,3678.2,3678.1,2.71878]
[1732989201885,0.55,3678.2,3677.8,2.719]
[1732989202093,0.55,3678.2,3677.9,2.71889]
[1732989203085,0.55,3678.2,3678.0,2.71886]
[1732989203666,0.55,3678.2,3677.8,2.71894]
[1732989204473,1.07513074,3678.2,3677.8,2.71894]
[1732989204672,0.55,3678.2,3677.9,2.71891]
[1732989205580,0.55,3678.2,3677.7,2.71907]
[1732989205790,0.55,3678.2,3678.0,2.71885]
[1732989206286,0.55,3678.2,3678.1,2.71879]
[1732989207921,0.55,3678.3,3678.2,2.71872]
[1732989208098,0.55,3678.5,3678.2,2.71872]
[1732989208280,1.17075737,3678.6,3678.3,2.71862]
[1732989208471,0.25377827,3678.5,3678.2,2.71872]
[1732989208680,1.17075737,3678.6,3678.2,2.71872]
[1732989208979,0.25378907,3678.5,3678.2,2.71872]
[1732989209301,1.17075737,3678.6,3678.2,2.71872]
[1732989209302,0.53178521,3678.4,3678.2,2.71872]
[1732989209507,0.55,3678.3,3678.2,2.71872]
[1732989209806,1.72075737,3678.3,3678.2,2.71872]
[1732989210620,2.53275737,3678.3,3678.2,2.71872]
[1732989213078,0.55,3678.3,3678.2,2.71872]
[1732989213283,0.55,3678.5,3678.4,2.71852]
[1732989213590,1.15205123,3678.5,3678.4,2.71852]
[1732989213919,0.89822094,3678.5,3678.4,2.71852]
[1732989214297,0.55,3678.5,3678.4,2.71852]
[1732989216716,0.55,3678.5,3678.4,1.623506]
[1732989216919,0.55,3678.5,3678.2,2.71872]
[1732989217498,0.55,3678.5,3678.4,2.71852]
[1732989220223,0.80405552,3678.5,3678.4,2.71852]
[1732989220394,1.1370714,3678.5,3678.4,2.71852]
[1732989220793,1.13715168,3678.5,3678.4,2.71852]
[1732989221592,1.13715168,3678.5,3678.2,2.71872]
[1732989221793,1.72075737,3678.3,3678.2,2.71872]
[1732989222025,1.97496955,3678.3,3678.2,2.71872]
[1732989224824,3.26881,3678.1,3677.2,0.00377848]
[1732989225166,1.3624,3677.5,3677.4,2.71928]
[1732989225927,0.55,3677.5,3677.4,2.71928]
[1732989226290,0.55,3677.7,3677.6,2.71912]
[1732989226605,0.55,3677.8,3677.7,2.71906]
[1732989226921,0.80440658,3677.8,3677.7,2.71906]
[1732989227299,0.55,3678.0,3677.8,2.71901]
[1732989227503,0.80442566,3677.9,3677.8,2.71901]
[1732989227907,0.55,3678.1,3677.9,2.71888]
[1732989228232,0.55,3677.9,3677.8,2.71901]
[1732989228384,3.04009663,3677.9,3677.6,2.71916]
[1732989228586,0.55,3677.8,3677.3,2.71938]
[1732989228826,2.23567525,3677.9,3677.4,2.71931]
[1732989228827,0.55,3677.5,3677.4,2.71931]
[1732989230614,1.09119169,3677.5,3677.4,2.71931]
[1732989241888,0.54119169,3677.5,3677.4,3.52931]
[1732989243182,1.09119169,3677.5,3677.4,3.52931]
[1732989248017,0.54119169,3677.5,3677.4,4.15455885]
[1732989248161,1.97625737,3678.6,3678.4,2.71856]
[1732989248367,0.66134567,3678.5,3678.4,2.71856]
[1732989248697,0.66136893,3678.5,3678.4,2.71856]
[1732989248908,0.51812635,3678.5,3678.4,2.71856]
[1732989249318,1.06812635,3678.5,3678.4,2.71856]
[1732989250691,0.79758124,3678.5,3678.4,3.52856]
[1732989251092,0.54321752,3678.5,3678.4,3.52856]
[1732989252487,1.09321752,3678.5,3678.4,3.52856]
[1732989253006,1.09321752,3678.5,3678.4,2.71856]
[1732989261844,1.09321752,3678.5,3678.2,2.71871]
[1732989262052,0.55,3678.3,3677.7,2.71904]
[1732989262286,0.55,3677.8,3677.3,0.8288]
[1732989262584,1.72075737,3677.7,3677.6,2.7191]
[1732989264966,2.26690799,3677.7,3677.6,2.7191]
[1732989265587,2.26690799,3677.7,3677.3,2.71931]
[1732989265588,0.55,3677.6,3677.4,2.71926]
[1732989265974,1.17075737,3677.5,3677.2,2.72318848]
[1732989266154,0.55,3677.4,3677.3,2.71938]
[1732989271499,0.55,3677.4,3677.2,2.71945]
[1732989271500,0.7766908,3677.4,3677.2,2.71945]
[1732989271723,1.17075737,3677.3,3676.9,2.71968]
[1732989271925,0.55,3677.2,3676.9,2.71968]
[1732989272336,0.55,3677.0,3676.9,2.71968]
[1732989275543,1.09747721,3677.0,3676.9,2.71968]
[1732989280837,0.54747721,3677.0,3676.9,2.71968]
[1732989281125,0.54747721,3677.0,3676.9,3.34439]
[1732989281949,7.21e-06,3677.0,3676.9,4.15199]
[1732989282137,1.52200579,3678.3,3676.9,4.15199]
[1732989282138,1.42448712,3678.1,3676.9,0.62471]
[1732989282341,1.17075737,3678.1,3678.0,2.71886]
[1732989283629,1.72075737,3678.1,3678.0,2.71886]
[1732989284523,0.55,3678.2,3678.1,2.71879]
[1732989285763,1.09932171,3678.2,3678.1,2.71879]
[1732989289978,1.32632962,3678.2,3678.1,2.71879]
[1732989290152,0.55,3678.0,3677.9,2.71887]
[1732989290340,1.72075737,3678.0,3677.9,2.71887]
[1732989291288,1.72075737,3678.0,3677.7,2.71908]
[1732989291437,1.72075737,3678.0,3677.8,2.719]
[1732989291976,1.72075737,3678.0,3677.9,2.71894]
[1732989292777,2.0920687,3678.0,3677.8,2.719]
[1732989292979,2.0920687,3678.0,3677.9,2.71894]
[1732989294943,2.34624554,3678.0,3677.9,2.71894]
[1732989295882,2.0920687,3678.0,3677.9,2.71894]
[1732989296386,2.34623678,3678.0,3677.9,2.71894]
[1732989296576,2.0920687,3678.0,3677.9,2.71894]
[1732989300460,0.55,3678.1,3677.9,2.71894]
[1732989300663,0.55,3678.1,3678.0,2.71886]
[1732989302048,0.8041187,3678.1,3678.0,2.71886]
[1732989302253,1.6330187,3678.1,3678.0,2.71886]
[1732989302456,2.00898682,3678.1,3678.0,2.71886]
[1732989303367,1.18008682,3678.1,3678.0,2.71886]
[1732989303674,0.55,3678.1,3678.0,2.71886]
[1732989307171,0.54932171,3678.2,3678.1,2.71879]
[1732989308562,1.09932171,3678.2,3678.1,2.71879]
[1732989311063,0.55,3678.1,3678.0,2.71886]
[1732989311388,0.55,3678.1,3677.7,2.71904]
[1732989311389,0.85745691,3678.1,3677.9,2.71894]
[1732989311575,0.55,3677.9,3677.7,2.71904]
[1732989311993,0.55,3677.9,3677.5,2.71922]
[1732989312186,1.17075737,3677.7,3677.5,2.71922]
[1732989312415,1.72075737,3677.7,3677.6,2.71916]
[1732989313195,1.97572311,3677.7,3677.6,2.71916]
[1732989315385,0.55,3677.6,3677.4,2.7193]
[1732989316319,1.72075737,3677.5,3677.4,2.7193]
[1732989318312,0.55,3677.9,3677.5,2.71921]
[1732989318514,0.55,3677.6,3677.4,2.7193]
[1732989318712,0.55,3677.4,3677.1,2.71949]
[1732989318897,0.55,3677.0,3676.9,2.71967]
[1732989320428,0.55,3677.2,3677.0,2.7196]
[1732989322153,1.17075737,3677.1,3676.8,2.71975]
[1732989322316,0.55,3677.0,3676.8,2.71975]
[1732989322966,0.55,3677.0,3676.9,2.71968]
[1732989327126,1.10391278,3677.0,3676.9,2.71968]
[1732989331838,0.55,3677.0,3676.9,4.06823854]
[1732989333452,0.55,3677.0,3676.9,3.48338]
[1732989334850,0.55,3677.0,3676.9,2.71968]
[1732989347729,0.80479205,3677.0,3676.9,2.71968]
[1732989348148,0.55,3677.0,3676.9,2.71968]
[1732989348349,0.80484028,3677.0,3676.9,2.71968]
[1732989349439,0.55,3677.0,3676.9,2.71968]
[1732989352577,0.55,3677.0,3676.9,3.54358]
[1732989353490,0.80482586,3677.0,3676.9,3.54358]
[1732989354595,0.80482586,3677.0,3676.9,2.71968]
[1732989355568,0.55,3677.0,3676.9,2.71968]
[1732989355808,0.5195,3677.0,3676.9,2.71968]
[1732989355964,0.77434036,3677.0,3676.9,2.71968]
[1732989357660,0.77434445,3677.0,3676.9,2.71968]
[1732989357971,0.77434213,3677.0,3676.7,2.71982]
[1732989358180,0.55,3676.8,3676.7,2.71982]
[1732989358367,0.80483252,3676.8,3676.7,2.71982]
[1732989358569,0.55,3676.8,3676.7,2.71982]
[1732989358890,0.80483461,3676.8,3676.7,2.71982]
[1732989359066,0.55,3677.0,3676.8,2.71969]
[1732989359255,0.80481064,3676.9,3676.8,2.71969]
[1732989360995,0.55,3677.0,3676.8,2.71969]
[1732989361721,0.55,3677.0,3676.9,2.71968]
[1732989362498,0.53747762,3677.1,3677.0,2.7196]
[1732989362830,0.79228157,3677.1,3677.0,2.7196]
[1732989363208,0.98858546,3677.1,3677.0,2.7196]
[1732989363838,1.28378151,3677.1,3677.0,2.7196]
[1732989364132,0.55,3677.0,3676.8,2.7197]
[1732989364352,0.80483165,3676.9,3676.8,2.7197]
[1732989364898,0.55,3677.0,3676.9,2.71968]
[1732989365232,0.80484442,3677.0,3676.9,2.71968]
[1732989367434,0.80484281,3677.0,3676.9,2.71968]
[1732989368037,0.55,3677.0,3676.9,2.71968]
[1732989369181,0.55,3677.0,3676.9,3.263629]
[1732989369409,0.57737649,3677.8,3677.7,2.71909]
[1732989369542,0.83216977,3677.8,3677.7,2.71909]
[1732989370784,1.38206618,3677.8,3677.7,2.71909]
[1732989370983,1.91709262,3677.8,3677.7,2.71909]
[1732989372386,2.08893604,3677.8,3677.7,2.71909]
[1732989373091,3.25969341,3677.8,3677.1,0.7827]
[1732989373311,1.3201,3677.5,3677.2,2.71946]
[1732989374001,0.55,3677.3,3677.0,2.71956]
[1732989374162,0.55,3677.3,3676.6,0.7827]
[1732989374370,0.55,3677.3,3677.2,2.71946]
[1732989374565,0.79908574,3677.3,3677.2,2.71946]
[1732989374767,0.55,3677.3,3677.2,2.71946]
[1732989374993,0.55,3677.3,3677.2,3.51366]
[1732989378133,0.55,3677.6,3677.3,2.71934]
[1732989378301,0.55,3677.7,3677.3,2.71934]
[1732989378486,0.55,3677.5,3677.3,2.71934]
[1732989378683,0.55,3677.5,3677.2,2.71946]
[1732989378684,0.55,3677.5,3677.4,2.71931]
[1732989380135,0.55,3677.3,3677.2,2.7194]
[1732989380689,0.55,3677.4,3677.3,2.71938]
[1732989380893,0.55,3677.5,3677.3,2.71938]
[1732989381139,0.55,3677.5,3677.4,2.71931]
[1732989381297,1.11926553,3677.8,3677.4,0.7703]
[1732989381633,0.83906873,3677.8,3677.7,2.71909]
[1732989382494,1.38906873,3677.8,3677.7,2.71909]
[1732989384338,1.38906873,3677.8,3677.5,2.71921]
[1732989384339,0.55,3677.7,3677.5,2.71921]
[1732989384495,0.55,3677.7,3677.3,2.71937]
[1732989384694,0.55,3677.4,3677.1,2.71948]
[1732989384926,0.79711574,3677.4,3676.9,2.71962]
[1732989385232,0.79711574,3677.4,3676.7,3.49011]
[1732989385435,0.79711574,3677.4,3677.0,2.7196]
[1732989387145,0.79711574,3677.4,3677.0,2.71955]
[1732989387552,0.79711574,3677.4,3676.7,0.7703]
[1732989387754,0.79711574,3677.4,3677.3,2.71938]
[1732989389053,0.79711574,3677.4,3677.2,2.71945]
[1732989391364,1.35456323,3677.4,3677.2,2.71945]
[1732989391759,1.35456323,3677.4,3677.3,2.71938]
[1732989393560,1.10744749,3677.4,3677.3,2.71938]
[1732989393868,1.10744749,3677.4,3677.3,3.48968]
[1732989394552,0.55744749,3677.4,3677.3,3.48968]
[1732989394938,0.40721107,3678.4,3678.1,2.71879]
[1732989395137,1.95017841,3678.6,3678.1,2.71879]
[1732989395138,0.23573895,3678.3,3678.2,2.71872]
[1732989395479,1.42518361,3678.5,3678.1,2.71873]
[1732989395648,1.17075737,3678.3,3677.9,2.71891]
[1732989395973,1.17075737,3678.3,3678.0,2.71884]
[1732989396376,1.70726046,3678.3,3678.1,2.71878]
[1732989396678,0.55,3678.2,3678.1,2.71878]
[1732989396872,0.80441117,3678.2,3678.1,2.71878]
[1732989397773,0.55,3678.2,3678.1,2.71878]
[1732989397937,0.80439812,3678.2,3678.1,2.71878]
[1732989398372,0.55,3678.2,3678.1,2.71878]
[1732989398544,0.80436974,3678.2,3678.1,2.71878]
[1732989399365,0.55,3678.2,3678.1,2.71878]
[1732989399674,0.80435029,3678.2,3678.1,2.71878]
[1732989400038,0.55,3678.2,3678.1,2.71878]
[1732989400570,1.98718442,3678.2,3677.9,2.71892]
[1732989400873,1.72075737,3678.2,3677.9,2.71892]
[1732989401074,0.55,3678.0,3677.7,2.71907]
[1732989401431,0.55,3678.1,3677.7,2.71907]
[1732989402285,0.55,3677.9,3677.7,2.71907]
[1732989402774,0.55,3678.1,3677.6,0.7824]
[1732989402938,0.55,3677.9,3677.8,2.71901]
[1732989403279,1.87777521,3678.1,3677.8,2.71901]
[1732989403446,0.55,3677.9,3677.8,2.71901]
[1732989403783,0.80431387,3677.9,3677.6,2.71913]
[1732989403936,0.55,3677.9,3677.6,2.71913]
[1732989404141,0.55,3677.9,3677.7,2.71908]
[1732989404356,0.89554422,3677.9,3677.7,2.71908]
[1732989404679,1.17075737,3677.8,3677.0,2.7196]
[1732989404980,0.55,3677.7,3677.6,2.71916]
[1732989405176,0.55,3677.9,3677.8,2.71901]
[1732989405475,0.80432631,3677.9,3677.8,2.71901]
[1732989406077,0.55,3678.0,3677.9,2.7189]
[1732989406377,0.55,3678.1,3678.0,2.71883]
[1732989406573,1.28652917,3678.1,3678.0,2.71883]
[1732989407176,0.8043085,3678.1,3678.0,2.71883]
[1732989407481,0.55,3678.1,3678.0,2.71883]
[1732989407641,0.80429566,3678.1,3678.0,2.71883]
[1732989407968,0.55,3678.1,3678.0,2.71883]
[1732989408173,0.80429584,3678.1,3678.0,2.71883]
[1732989408737,0.55,3678.1,3678.0,2.71883]
[1732989409039,0.80429468,3678.1,3678.0,2.71883]
[1732989409235,0.55,3678.1,3678.0,2.71883]
[1732989410549,0.55,3678.2,3678.0,2.71883]
[1732989413067,0.55,3678.2,3678.1,2.71879]
[1732989413386,0.80429027,3678.2,3678.1,2.71879]
[1732989418680,1.58520321,3678.2,3678.0,2.71886]
[1732989418862,0.25429027,3678.1,3678.0,2.71886]
[1732989419067,0.80429027,3678.1,3678.0,2.71886]
[1732989419883,0.80429027,3678.1,3678.0,3.47816]
[1732989420402,0.53650309,3678.3,3678.2,2.71872]
[1732989420963,0.53650309,3678.3,3678.2,3.338408]
[1732989421199,0.55420322,3678.6,3678.5,2.71849]
[1732989421350,0.80872037,3678.6,3678.5,2.71849]
[1732989422192,1.35872037,3678.6,3678.5,2.71849]
[1732989423378,1.35872037,3678.6,3678.5,3.47779]
[1732989423580,1.10420322,3678.6,3678.5,3.47779]
[1732989423759,1.10420322,3678.6,3678.5,4.097427]
[1732989423960,1.66072419,3678.6,3678.5,4.097427]
[1732989425745,1.10420322,3678.6,3678.5,4.097427]
[1732989425930,0.55420322,3678.6,3678.5,4.097427]
[1732989427032,3.59516812,3680.1,3679.4,2.71783]
[1732989427033,0.25417955,3679.5,3679.4,2.71783]
[1732989427215,1.57763359,3679.9,3679.7,2.71755]
[1732989427525,0.2541372,3679.8,3679.5,2.71772]
[1732989427724,1.17075737,3679.9,3679.5,2.71772]
[1732989427725,0.2541372,3679.7,3679.5,2.71772]
[1732989428031,1.17075737,3679.9,3679.6,2.71768]
[1732989428239,0.25399821,3679.8,3679.6,2.71768]
[1732989428532,0.80399821,3679.7,3679.2,2.71797]
[1732989428826,0.80389588,3679.6,3679.5,2.71774]
[1732989429202,0.55,3679.7,3679.5,2.71774]
[1732989429414,0.80380164,3679.7,3679.2,2.71797]
[1732989429731,1.72075737,3679.7,3679.2,2.71797]
[1732989429903,1.3817,3679.5,3679.4,2.71778]
[1732989430110,2.55245737,3679.5,3679.2,2.71797]
[1732989430599,2.80625924,3679.5,3679.2,2.71797]
[1732989430815,2.55245737,3679.5,3679.2,2.71797]
[1732989431221,2.80622226,3679.5,3679.2,2.71797]
[1732989431416,2.55245737,3679.5,3679.2,2.71797]
[1732989431648,2.55245737,3679.5,3678.8,2.71826]
[1732989431847,2.80618457,3679.5,3679.0,2.71808]
[1732989432016,2.55245737,3679.5,3679.1,2.71804]
[1732989432218,2.00245737,3679.5,3679.1,2.71804]
[1732989432449,2.2561882,3679.5,3679.1,2.71804]
[1732989432658,2.00245737,3679.5,3679.1,2.71804]
[1732989432866,2.2561882,3679.5,3679.1,2.71804]
[1732989433154,2.00245737,3679.5,3679.1,2.71804]
[1732989433359,2.25616735,3679.5,3678.9,2.7182]
[1732989433555,1.17075737,3679.3,3678.9,2.7182]
[1732989434060,1.17075737,3679.3,3679.0,2.71811]
[1732989434256,1.17075737,3679.3,3679.1,2.71804]
[1732989434460,1.17075737,3679.3,3679.2,2.71798]
[1732989434622,0.8317,3679.5,3679.3,2.71783]
[1732989434952,0.8317,3679.5,3679.1,2.71804]
[1732989435658,0.8023,3679.7,3679.4,2.71783]
[1732989435875,0.25372244,3679.5,3679.4,2.71783]
[1732989436040,0.25372244,3679.6,3679.4,2.71783]
[1732989438446,1.97305737,3679.7,3679.4,2.71783]
[1732989438636,0.25371186,3679.6,3679.4,2.71783]
[1732989438833,0.25371186,3679.5,3679.4,2.71783]
[1732989439062,0.25371186,3679.5,3679.2,2.71796]
[1732989439249,0.25371186,3679.4,3679.2,2.71796]
[1732989439454,0.25371186,3679.3,3679.2,2.71796]
[1732989440260,0.55,3679.1,3678.8,2.71822]
[1732989440572,1.17075737,3678.9,3678.8,2.71822]
[1732989440773,1.42453243,3678.9,3678.7,2.71832]
[1732989440940,1.17075737,3678.9,3678.7,2.71832]
[1732989441870,1.17075737,3678.9,3678.5,2.71849]
[1732989442174,1.17075737,3678.9,3678.7,2.71835]
[1732989442359,0.25385047,3678.8,3678.7,2.71835]
[1732989444512,0.78551055,3678.8,3678.7,2.71835]
[1732989445760,0.78551055,3678.8,3678.7,3.54405]
[1732989446076,0.53166008,3678.8,3678.7,3.54405]
[1732989446270,0.78569939,3678.8,3678.7,3.54405]
[1732989446472,0.78569939,3678.8,3678.7,4.170304]
[1732989446791,0.40648496,3679.4,3679.3,2.7179]
[1732989446999,0.66050999,3679.4,3679.3,2.7179]
[1732989447181,0.25402503,3679.4,3679.3,2.7179]
[1732989447694,0.80161933,3679.4,3679.3,2.7179]
[1732989449360,1.20847353,3679.4,3679.3,2.7179]
[1732989451182,2.27199662,3679.4,3678.7,3.54402]
[1732989451364,1.17075737,3679.2,3678.9,2.71814]
[1732989451581,0.66087923,3679.1,3679.0,2.71812]
[1732989452198,0.66099332,3679.1,3679.0,2.71812]
[1732989452496,0.66104976,3679.1,3679.0,2.71812]
[1732989454400,0.66104976,3679.1,3678.8,2.71825]
[1732989454614,0.25402503,3679.0,3678.8,2.71825]
[1732989454764,0.25402503,3678.9,3678.8,2.71825]
[1732989455405,1.4247824,3678.9,3678.6,2.71839]
[1732989455604,0.25402503,3678.8,3678.6,2.71839]
[1732989455815,0.25402503,3678.7,3678.5,2.71848]
[1732989456021,0.25402503,3678.6,3678.5,2.71848]
[1732989456388,0.25445071,3678.6,3678.5,2.71848]
[1732989457422,0.25445071,3678.6,3678.1,0.8081]
[1732989457598,1.17075737,3679.1,3678.6,0.8081]
[1732989457919,1.04396029,3679.0,3678.8,2.71824]
[1732989458124,0.83150915,3678.9,3678.8,2.71824]
[1732989458537,0.83150915,3678.9,3678.6,0.8081]
[1732989458690,1.83231245,3678.8,3678.7,2.71835]
[1732989458898,2.00227305,3678.8,3678.5,2.71849]
[1732989459206,0.66155508,3678.7,3678.5,2.71849]
[1732989459533,1.17075737,3678.8,3677.0,0.1]
[1732989459534,0.66155508,3678.6,3678.1,0.8283]
[1732989459853,1.17075737,3678.8,3678.6,2.71836]
[1732989460131,0.6615964,3678.7,3678.6,2.71836]
[1732989460435,1.64022795,3678.7,3678.3,2.71862]
[1732989460646,1.64022795,3678.7,3678.1,3.54708]
[1732989460647,0.66159269,3678.6,3678.4,2.71856]
[1732989460816,0.25446015,3678.5,3678.4,2.71856]
[1732989462430,0.25446015,3678.5,3678.3,2.71864]
[1732989462631,0.25446015,3678.4,3678.3,2.71864]
[1732989463530,0.25442082,3678.4,3678.1,2.71879]
[1732989463708,0.25442082,3678.3,3678.1,2.71879]
[1732989463905,0.4070716,3678.6,3678.2,2.71872]
[1732989464123,0.66149143,3678.5,3678.3,2.71862]
[1732989464305,0.25441983,3678.4,3678.3,2.71862]
[1732989467122,0.25437821,3678.4,3678.3,2.71862]
[1732989469344,0.25437821,3678.4,3678.3,4.057761]
[1732989469638,0.55196606,3678.7,3678.6,2.71842]
[1732989469840,0.80634239,3678.7,3678.6,2.71842]
[1732989470011,0.25437633,3678.7,3678.6,3.51382]
[1732989470195,1.17075737,3679.5,3679.3,2.71789]
[1732989470398,0.76488038,3679.4,3679.3,2.71789]
[1732989470625,1.42618008,3679.4,3678.8,2.71825]
[1732989470825,0.6612997,3679.3,3679.1,2.71805]
[1732989471096,0.25434604,3679.2,3679.1,2.71805]
[1732989471541,0.25434604,3679.2,3679.1,3.51345]
[1732989471844,0.25434604,3679.2,3679.1,4.136614]
[1732989472008,0.5529673,3679.4,3679.3,2.7179]
[1732989472200,0.8072674,3679.4,3679.3,2.7179]
[1732989473847,7.4e-06,3679.4,3679.3,3.5133]
[1732989474045,1.94915737,3680.5,3680.3,2.71711]
[1732989474205,0.32574305,3680.4,3680.3,2.71711]
[1732989475435,1.17075737,3680.7,3680.6,2.71689]
[1732989476042,1.70195791,3680.7,3680.6,2.71689]
[1732989476235,1.70195791,3680.7,3680.4,2.71708]
[1732989476401,1.17075737,3680.5,3680.4,2.71708]
[1732989476826,0.53120054,3680.7,3680.4,2.71708]
[1732989477037,0.73088746,3680.6,3680.4,2.71708]
[1732989477416,4.04572,3680.5,3679.8,2.71749]
[1732989477623,2.59260472,3680.3,3679.8,2.71749]
[1732989478037,2.59260472,3680.3,3679.6,2.71768]
[1732989478210,3.0,3680.2,3679.9,2.71744]
[1732989478544,0.55926047,3680.1,3679.9,2.71744]